bitfinex/quotes_BTCUSD_20210101
["timestamp","ask_amount","ask_price","bid_price","bid_amount"]
[1609502911636,0.4970353,29246.0,29244.0,0.79089154]
[1609502911835,0.4970353,29246.0,29245.0,5.16680302]
[1609502912335,0.4970353,29246.0,29245.0,5.485]
[1609502912550,0.4970353,29246.0,29245.0,4.835]
[1609502913348,0.4970353,29246.0,29245.0,5.485]
[1609502913553,0.4970353,29246.0,29245.0,4.835]
[1609502913752,0.4970353,29246.0,29245.0,4.915]
[1609502914852,0.4970353,29246.0,29245.0,4.415]
[1609502916371,0.4970353,29246.0,29245.0,4.615]
[1609502916671,0.4920353,29246.0,29245.0,4.615]
[1609502921375,0.4920353,29246.0,29245.0,0.465]
[1609502922195,0.4920353,29246.0,29245.0,3.215]
[1609502925305,0.4920353,29246.0,29245.0,0.265]
[1609502925505,0.4920353,29246.0,29243.0,0.28]
[1609502925710,0.96023106,29245.0,29243.0,0.28]
[1609502925910,0.96023106,29245.0,29242.0,0.6826]
[1609502926691,0.1,29244.0,29241.0,0.6826]
[1609502926886,1.11523106,29243.0,29241.0,0.6826]
[1609502927085,0.96023106,29242.0,29239.0,0.7897]
[1609502927277,1.11523106,29243.0,29239.0,0.7897]
[1609502927481,0.96023106,29242.0,29239.0,0.7897]
[1609502927691,0.96023106,29241.0,29239.0,0.7897]
[1609502927900,0.14,29240.0,29234.0,0.4878]
[1609502928101,1.3454978,29239.0,29234.0,0.4878]
[1609502928301,0.1,29237.0,29234.0,0.4878]
[1609502928493,1.13926106,29236.0,29234.0,0.4878]
[1609502928704,1.13926106,29236.0,29232.0,0.2704]
[1609502928705,0.96023106,29235.0,29232.0,0.2704]
[1609502928905,0.3,29234.0,29229.0,0.7916]
[1609502929095,1.26023106,29234.0,29230.0,1.0]
[1609502929298,0.3,29234.0,29230.0,1.0]
[1609502929492,0.1,29234.0,29230.0,1.0]
[1609502929990,0.1,29234.0,29228.0,1.304873]
[1609502930893,0.20188171,29234.0,29228.0,1.304873]
[1609502931091,0.1,29234.0,29228.0,1.304873]
[1609502931312,0.1,29234.0,29228.0,1.499873]
[1609502931518,1.06023106,29234.0,29228.0,0.862073]
[1609502931713,0.1,29234.0,29228.0,0.667073]
[1609502931916,0.1,29234.0,29228.0,0.86223052]
[1609502932822,0.17903,29236.0,29228.0,0.86223052]
[1609502933020,0.17903,29236.0,29229.0,0.33180302]
[1609502933232,0.17903,29236.0,29230.0,0.1]
[1609502933617,0.96023106,29236.0,29230.0,0.1]
[1609502933820,0.25,29236.0,29230.0,0.1]
[1609502934020,1.21023106,29236.0,29230.0,0.1]
[1609502934321,1.15062106,29235.0,29230.0,0.1]
[1609502934522,0.19039,29235.0,29230.0,0.1]
[1609502934717,1.15062106,29235.0,29230.0,0.1]
[1609502935221,0.19039,29235.0,29230.0,0.1]
[1609502935717,0.1,29237.0,29230.0,0.1]
[1609502936021,1.14411106,29236.0,29230.0,0.1]
[1609502936418,0.185,29235.0,29230.0,0.1]
[1609502936621,0.96023106,29234.0,29230.0,0.1]
[1609502936820,1.14523106,29235.0,29230.0,0.1]
[1609502937036,0.1,29234.0,29230.0,0.1]
[1609502937438,1.14523106,29235.0,29230.0,0.1]
[1609502937936,0.195,29234.0,29230.0,0.1]
[1609502938335,0.19,29234.0,29230.0,0.1]
[1609502938940,0.18388,29236.0,29230.0,0.1]
[1609502939137,1.14411106,29236.0,29230.0,0.1]
[1609502939734,0.18388,29236.0,29230.0,0.1]
[1609502940133,1.14411106,29236.0,29230.0,0.1]
[1609502940339,0.18388,29236.0,29230.0,0.1]
[1609502941423,0.3,29241.0,29230.0,0.29515752]
[1609502941619,0.68290001,29243.0,29228.0,0.667073]
[1609502941620,1.16023106,29240.0,29228.0,0.667073]
[1609502941827,0.96023106,29239.0,29228.0,0.667073]
[1609502942018,1.16023106,29239.0,29232.0,0.5122]
[1609502942219,0.96023106,29239.0,29232.0,0.5122]
[1609502942415,0.96023106,29240.0,29232.0,0.5122]
[1609502942626,0.48,29241.0,29232.0,0.5122]
[1609502942627,1.24023106,29241.0,29232.0,0.5122]
[1609502942830,0.28,29241.0,29232.0,0.5122]
[1609502943230,0.00405556,29245.0,29232.0,0.5122]
[1609502943530,0.96023106,29244.0,29232.0,0.5122]
[1609502944131,0.96023106,29244.0,29233.0,0.33180302]
[1609502944528,0.96023106,29244.0,29232.0,0.71706976]
[1609502944730,0.145,29243.0,29233.0,0.33180302]
[1609502944924,1.10523106,29243.0,29233.0,0.33180302]
[1609502945123,1.10523106,29243.0,29232.0,0.38526674]
[1609502945627,1.10523106,29243.0,29232.0,0.33180302]
[1609502945926,1.10523106,29243.0,29231.0,0.9534]
[1609502946126,0.165,29242.0,29231.0,0.9534]
[1609502946352,0.29527561,29245.0,29231.0,0.9534]
[1609502946551,0.96023106,29244.0,29232.0,0.33180302]
[1609502946753,0.14,29243.0,29231.0,0.9534]
[1609502946955,1.10023106,29243.0,29232.0,0.33180302]
[1609502947156,1.19719106,29242.0,29232.0,0.33180302]
[1609502947454,0.96023106,29241.0,29232.0,0.33180302]
[1609502947652,0.96023106,29241.0,29231.0,0.9534]
[1609502947857,0.96023106,29241.0,29232.0,0.33180302]
[1609502948281,0.96023106,29241.0,29231.0,0.9534]
[1609502948462,0.96023106,29242.0,29235.0,0.5122]
[1609502949264,0.14,29241.0,29235.0,0.5122]
[1609502949459,0.96023106,29240.0,29235.0,0.5122]
[1609502950105,0.14,29241.0,29235.0,0.5122]
[1609502950262,1.10023106,29241.0,29235.0,0.5122]
[1609502950463,0.165,29240.0,29235.0,0.5122]
[1609502952396,0.14,29241.0,29235.0,0.5122]
[1609502953996,1.10023106,29241.0,29235.0,0.5122]
[1609502954201,0.14,29241.0,29235.0,0.5122]
[1609502954397,1.10023106,29241.0,29235.0,0.5122]
[1609502954600,0.14,29240.0,29235.0,0.5122]
[1609502954800,1.10023106,29240.0,29235.0,0.5122]
[1609502955002,0.14,29240.0,29235.0,0.5122]
[1609502955200,0.2,29241.0,29235.0,0.5122]
[1609502955401,0.96023106,29241.0,29235.0,0.5122]
[1609502955601,0.14,29240.0,29235.0,0.5122]
[1609502957377,1.10023106,29240.0,29235.0,0.5122]
[1609502957582,0.165,29239.0,29235.0,0.5122]
[1609502957994,1.12523106,29239.0,29235.0,0.5122]
[1609502958195,0.165,29239.0,29235.0,0.5122]
[1609502958395,0.96023106,29239.0,29235.0,0.5122]
[1609502958595,0.0102239,29240.0,29235.0,0.5122]
[1609502958795,0.00408975,29239.0,29235.0,0.5122]
[1609502961714,0.01022488,29240.0,29235.0,0.5122]
[1609502962311,0.00409054,29240.0,29235.0,0.5122]
[1609502963212,0.0102273,29240.0,29235.0,0.5122]
[1609502964010,0.00409054,29240.0,29235.0,0.5122]
[1609502964821,0.00409208,29237.0,29235.0,0.5122]
[1609502966416,0.18138208,29237.0,29235.0,0.5122]
[1609502966821,0.18138208,29237.0,29235.0,0.51151278]
[1609502968639,0.00409208,29237.0,29235.0,0.51151278]
[1609502969442,0.00409302,29236.0,29235.0,0.51151278]
[1609502969743,0.00613953,29237.0,29235.0,0.51151278]
[1609502969744,0.01022653,29237.0,29235.0,0.51151278]
[1609502970042,0.004087,29237.0,29235.0,0.51151278]
[1609502970446,0.010218,29237.0,29235.0,0.51151278]
[1609502970644,0.004087,29237.0,29235.0,0.51151278]
[1609502970845,0.01021785,29237.0,29235.0,0.51151278]
[1609502971421,0.00408743,29236.0,29235.0,0.51151278]
[1609502972223,0.00408743,29236.0,29231.0,0.9534]
[1609502973233,0.00408743,29236.0,29232.0,0.33180302]
[1609502973433,0.00408743,29236.0,29231.0,1.3684]
[1609502973634,0.00408743,29236.0,29232.0,0.33180302]
[1609502973835,0.00408743,29236.0,29231.0,1.3684]
[1609502974037,0.00408743,29236.0,29232.0,0.33180302]
[1609502974236,0.00408743,29236.0,29231.0,0.9534]
[1609502974737,0.00408743,29236.0,29232.0,0.33180302]
[1609502974934,0.00408743,29236.0,29231.0,0.9534]
[1609502975235,0.00408743,29236.0,29232.0,0.33180302]
[1609502975433,0.00408743,29236.0,29232.0,0.28]
[1609502978460,0.00408743,29236.0,29231.0,0.9534]
[1609502978661,0.00408743,29236.0,29232.0,0.33180302]
[1609502978861,0.00408743,29236.0,29231.0,0.9534]
[1609502979062,0.00408743,29236.0,29232.0,0.33180302]
[1609502979262,0.00408743,29236.0,29231.0,0.9534]
[1609502979463,0.00408743,29236.0,29232.0,0.49180302]
[1609502979664,0.00408743,29236.0,29232.0,0.16]
[1609502981165,0.00408743,29236.0,29231.0,0.9534]
[1609502982091,0.00408743,29236.0,29232.0,0.33180302]
[1609502982289,0.00408743,29236.0,29231.0,0.9534]
[1609502982492,0.00408819,29237.0,29232.0,0.33180302]
[1609502982689,0.00408819,29237.0,29231.0,0.9534]
[1609502982890,0.00408819,29237.0,29232.0,0.33180302]
[1609502983090,0.00408819,29237.0,29231.0,0.9534]
[1609502983294,0.00408819,29237.0,29232.0,0.33180302]
[1609502985588,0.01022458,29237.0,29232.0,0.33180302]
[1609502987171,0.00409396,29236.0,29232.0,0.33180302]
[1609502988976,0.00409396,29236.0,29231.0,0.9534]
[1609502989177,0.00409396,29236.0,29232.0,0.75180302]
[1609502990578,0.00409396,29236.0,29232.0,0.33180302]
[1609502992418,0.00678676,29232.0,29231.0,0.9534]
[1609502993323,0.00678676,29232.0,29231.0,1.28520302]
[1609502993529,0.00678676,29232.0,29231.0,4.0934]
[1609502994417,0.00678676,29232.0,29231.0,2.1434]
[1609502994620,0.00678676,29232.0,29231.0,1.4434]
[1609502995255,0.00678676,29232.0,29231.0,0.9534]
[1609502995623,0.00678676,29232.0,29231.0,1.28520302]
[1609502995821,0.00678676,29232.0,29231.0,0.9534]
[1609502996020,0.00678676,29232.0,29231.0,1.28520302]
[1609502996221,0.00678676,29232.0,29231.0,0.9534]
[1609502996620,0.16566676,29232.0,29231.0,0.9534]
[1609502996821,0.16566676,29232.0,29231.0,0.6829]
[1609502998146,0.15888,29232.0,29231.0,0.6761074]
[1609502998347,0.15888,29232.0,29231.0,0.9511074]
[1609502999144,0.00204788,29234.0,29231.0,0.9511074]
[1609502999951,0.00204788,29234.0,29232.0,0.33180302]
[1609503000761,1.499e-05,29235.0,29233.0,7.42026674]
[1609503000959,1.499e-05,29235.0,29234.0,3.21706976]
[1609503001270,0.08193594,29240.0,29236.0,1.91180302]
[1609503001271,1.513e-05,29240.0,29236.0,1.91180302]
[1609503001533,0.08212314,29249.0,29245.0,0.47441076]
[1609503001727,0.32909258,29257.0,29247.0,0.3384421]
[1609503001728,0.12390907,29257.0,29247.0,0.3384421]
[1609503002026,0.4391,29260.0,29248.0,1.46242358]
[1609503002027,0.0006,29260.0,29248.0,1.46242358]
[1609503002222,0.0006,29260.0,29249.0,1.04086568]
[1609503002521,0.0006,29260.0,29251.0,0.76024512]
[1609503002724,0.0006,29260.0,29258.0,1.0687021]
[1609503002937,0.0006,29260.0,29259.0,0.51180302]
[1609503003335,0.0004,29261.0,29259.0,0.51180302]
[1609503003543,0.0002,29263.0,29261.0,5.3]
[1609503003745,0.0008,29264.0,29262.0,6.64024512]
[1609503003938,0.0008,29264.0,29263.0,5.63180302]
[1609503004643,0.2197,29268.0,29267.0,5.22661]
[1609503004837,0.2177,29268.0,29267.0,7.38661]
[1609503005037,0.0006,29269.0,29267.0,7.46661]
[1609503005038,0.0004,29269.0,29267.0,7.46661]
[1609503005240,0.0002,29269.0,29268.0,6.67118974]
[1609503005437,0.0002,29269.0,29268.0,1.00180302]
[1609503005749,0.0002,29269.0,29267.0,0.1794]
[1609503005940,0.0002,29269.0,29266.0,0.5116]
[1609503006338,0.0002,29269.0,29267.0,2.0723818]
[1609503006557,0.96043106,29269.0,29267.0,2.0723818]
[1609503006763,0.96032067,29270.0,29268.0,0.33180302]
[1609503006961,0.95194118,29269.0,29268.0,2.40409833]
[1609503007161,1.45685418,29269.0,29268.0,1.17645508]
[1609503007353,1.31685418,29269.0,29268.0,1.17645508]
[1609503007557,8.961e-05,29270.0,29268.0,1.17645508]
[1609503007959,8.961e-05,29270.0,29269.0,5.03180302]
[1609503008153,8.961e-05,29270.0,29269.0,5.70180302]
[1609503008755,8.961e-05,29270.0,29269.0,1.00180302]
[1609503008953,8.961e-05,29270.0,29269.0,0.33180302]
[1609503009357,8.961e-05,29270.0,29269.0,1.33180302]
[1609503009852,8.961e-05,29270.0,29269.0,0.33180302]
[1609503011155,8.961e-05,29270.0,29269.0,3.58180302]
[1609503011657,8.961e-05,29270.0,29269.0,4.36061686]
[1609503011853,8.961e-05,29270.0,29269.0,4.86061686]
[1609503012288,8.961e-05,29270.0,29269.0,1.61061686]
[1609503012485,8.961e-05,29270.0,29269.0,1.69061686]
[1609503012688,8.961e-05,29270.0,29269.0,1.61061686]
[1609503013290,8.961e-05,29270.0,29269.0,6.04860686]
[1609503013491,8.961e-05,29270.0,29269.0,6.12860686]
[1609503013689,8.961e-05,29270.0,29269.0,1.82860686]
[1609503013991,8.961e-05,29270.0,29269.0,1.74860686]
[1609503015092,8.961e-05,29270.0,29269.0,3.84504686]
[1609503015287,8.961e-05,29270.0,29269.0,3.76061686]
[1609503015688,8.961e-05,29270.0,29269.0,4.76061686]
[1609503017356,8.961e-05,29270.0,29269.0,2.61061686]
[1609503020070,8.961e-05,29270.0,29269.0,5.11061686]
[1609503020270,8.961e-05,29270.0,29269.0,5.64265686]
[1609503020468,8.961e-05,29270.0,29269.0,2.93265686]
[1609503020871,8.961e-05,29270.0,29269.0,3.19454282]
[1609503021072,8.961e-05,29270.0,29269.0,4.34454282]
[1609503021892,8.961e-05,29270.0,29269.0,3.19454282]
[1609503023392,8.961e-05,29270.0,29269.0,2.69454282]
[1609503023998,8.961e-05,29270.0,29269.0,5.14454282]
[1609503024195,8.961e-05,29270.0,29269.0,2.69454282]
[1609503024595,8.961e-05,29270.0,29269.0,2.48010282]
[1609503024996,8.961e-05,29270.0,29269.0,3.93010282]
[1609503025196,8.961e-05,29270.0,29269.0,4.22526034]
[1609503025898,8.961e-05,29270.0,29269.0,2.77526034]
[1609503026097,8.961e-05,29270.0,29269.0,3.91526034]
[1609503026295,8.961e-05,29270.0,29269.0,3.67526034]
[1609503026898,8.961e-05,29270.0,29269.0,2.77526034]
[1609503027220,8.961e-05,29270.0,29269.0,2.66766034]
[1609503027423,8.961e-05,29270.0,29269.0,2.37250282]
[1609503027626,0.95203079,29270.0,29269.0,2.37250282]
[1609503027928,1.09203079,29270.0,29269.0,2.37250282]
[1609503028129,1.65694379,29270.0,29269.0,2.37250282]
[1609503028322,1.75694379,29270.0,29269.0,2.37250282]
[1609503028721,1.75694379,29270.0,29269.0,1.37250282]
[1609503028922,2.01194379,29270.0,29269.0,1.37250282]
[1609503031124,0.59508961,29270.0,29269.0,1.37250282]
[1609503031332,8.961e-05,29270.0,29267.0,0.05972]
[1609503031995,0.36368764,29270.0,29269.0,5.65]
[1609503032391,0.36368764,29270.0,29269.0,1.0]
[1609503032697,0.36368764,29270.0,29269.0,1.20826081]
[1609503032893,0.36368764,29270.0,29269.0,2.65826081]
[1609503033092,0.36368764,29270.0,29269.0,3.16976081]
[1609503033498,0.36288764,29270.0,29269.0,7.01976081]
[1609503033807,0.0008,29274.0,29272.0,0.33180302]
[1609503033808,0.0002,29274.0,29272.0,0.33180302]
[1609503034004,0.0002,29274.0,29273.0,6.69225854]
[1609503034192,0.0002,29274.0,29273.0,6.03485]
[1609503034393,0.0002,29274.0,29273.0,6.3732921]
[1609503034597,0.0002,29274.0,29273.0,6.66168161]
[1609503034794,0.0002,29274.0,29273.0,2.36168161]
[1609503035002,0.0002,29274.0,29273.0,3.95503951]
[1609503035205,0.0002,29274.0,29273.0,5.65917354]
[1609503037400,0.0002,29274.0,29273.0,5.57917354]
[1609503038533,0.0002,29274.0,29273.0,4.32917354]
[1609503039135,0.95214118,29274.0,29273.0,4.32917354]
[1609503039446,0.95214118,29274.0,29273.0,3.32737052]
[1609503039641,0.95214118,29274.0,29273.0,2.64557052]
[1609503040140,1.15214118,29274.0,29273.0,2.64557052]
[1609503040345,0.0002,29274.0,29273.0,2.64557052]
[1609503040648,0.0002,29274.0,29273.0,2.43718101]
[1609503041039,0.0002,29274.0,29273.0,4.79544814]
[1609503041236,0.0002,29274.0,29273.0,4.95544814]
[1609503041636,0.0002,29274.0,29273.0,1.80544814]
[1609503041840,0.0002,29274.0,29273.0,2.50544814]
[1609503042044,0.0002,29274.0,29273.0,2.31684814]
[1609503042264,0.0002,29274.0,29273.0,2.15684814]
[1609503042765,0.0002,29274.0,29273.0,3.15684814]
[1609503042966,0.0002,29274.0,29273.0,4.35684814]
[1609503043464,0.0002,29274.0,29273.0,4.43684814]
[1609503043664,0.0002,29274.0,29273.0,4.75184814]
[1609503044868,0.0002,29274.0,29273.0,3.47184814]
[1609503045470,0.78850784,29274.0,29273.0,3.47184814]
[1609503045771,0.78850784,29274.0,29273.0,4.70684814]
[1609503045969,0.78850784,29274.0,29273.0,4.78684814]
[1609503046675,0.78850784,29274.0,29273.0,3.23684814]
[1609503046877,0.78850784,29274.0,29273.0,3.56684814]
[1609503048881,0.78850784,29274.0,29273.0,4.96684814]
[1609503049782,0.78850784,29274.0,29273.0,3.56684814]
[1609503050586,0.78850784,29274.0,29273.0,3.35858101]
[1609503052811,0.78850784,29274.0,29273.0,5.30858101]
[1609503053115,0.78850784,29274.0,29273.0,3.35858101]
[1609503054414,0.78850784,29274.0,29273.0,3.02858101]
[1609503054621,0.78850784,29274.0,29273.0,2.94858101]
[1609503055024,0.78850784,29274.0,29273.0,3.02858101]
[1609503056777,0.78850784,29274.0,29273.0,3.92858101]
[1609503056977,0.78850784,29274.0,29273.0,3.02858101]
[1609503057379,0.78850784,29274.0,29273.0,3.26358101]
[1609503057578,0.78850784,29274.0,29273.0,3.02858101]
[1609503058878,0.78850784,29274.0,29273.0,2.94858101]
[1609503059081,0.78850784,29274.0,29273.0,3.02858101]
[1609503061124,0.78850784,29274.0,29273.0,3.23708788]
[1609503062419,0.78850784,29274.0,29273.0,3.67208788]
[1609503063325,0.78850784,29274.0,29273.0,3.23708788]
[1609503063728,0.78850784,29274.0,29273.0,4.23708788]
[1609503064134,0.78850784,29274.0,29273.0,3.58455604]
[1609503064329,0.78850784,29274.0,29273.0,4.83455604]
[1609503064330,0.65210784,29274.0,29273.0,4.83455604]
[1609503064731,0.65210784,29274.0,29273.0,4.48708788]
[1609503064930,0.65210784,29274.0,29273.0,4.68708788]
[1609503065629,0.65210784,29274.0,29273.0,4.83461788]
[1609503066630,0.65210784,29274.0,29273.0,3.58461788]
[1609503067249,0.65210784,29274.0,29273.0,3.23708788]
[1609503067453,0.35150784,29274.0,29273.0,9.64366557]
[1609503067648,0.28831784,29274.0,29273.0,10.09366557]
[1609503068049,0.28831784,29274.0,29273.0,10.21825776]
[1609503068250,0.28831784,29274.0,29273.0,9.76825776]
[1609503068453,0.28831784,29274.0,29273.0,10.10006078]
[1609503068852,0.28831784,29274.0,29273.0,9.97546859]
[1609503070054,0.28831784,29274.0,29273.0,10.10001372]
[1609503070447,0.26025979,29274.0,29273.0,10.10001372]
[1609503072249,0.26025979,29274.0,29273.0,10.43845582]
[1609503072684,0.26025979,29274.0,29273.0,10.31391069]
[1609503072884,0.26025979,29274.0,29273.0,10.09997291]
[1609503073082,0.26025979,29274.0,29273.0,10.43841501]
[1609503074683,0.26025979,29274.0,29273.0,10.31391069]
[1609503077747,0.26025979,29274.0,29273.0,10.43834022]
[1609503080077,0.0006,29278.0,29274.0,2.04251886]
[1609503080277,0.0004,29280.0,29278.0,5.63180302]
[1609503080581,0.0006,29281.0,29279.0,0.92233061]
[1609503080777,0.0006,29281.0,29280.0,6.30180302]
[1609503080979,0.0006,29281.0,29280.0,6.51181541]
[1609503081175,0.0006,29281.0,29280.0,6.59181541]
[1609503081382,0.0006,29281.0,29280.0,7.59181541]
[1609503082984,0.0006,29281.0,29280.0,7.15448495]
[1609503087192,0.0006,29281.0,29280.0,1.96001239]
[1609503088014,0.0006,29281.0,29280.0,1.95001239]
[1609503088413,0.0006,29281.0,29280.0,3.45001239]
[1609503088813,0.0006,29281.0,29280.0,1.95001239]
[1609503089313,0.0006,29281.0,29280.0,3.60001239]
[1609503089814,0.0006,29281.0,29280.0,1.95001239]
[1609503090416,0.0006,29281.0,29280.0,3.20001239]
[1609503091414,0.0006,29281.0,29280.0,3.41429239]
[1609503092473,0.0006,29281.0,29280.0,2.16429239]
[1609503093088,0.0006,29281.0,29280.0,1.95001239]
[1609503093286,0.0006,29281.0,29280.0,2.75001239]
[1609503094987,0.0006,29281.0,29280.0,1.95001239]
[1609503095189,0.0006,29281.0,29280.0,2.05001239]
[1609503095891,0.10232703,29281.0,29280.0,2.05001239]
[1609503096091,0.0006,29281.0,29280.0,2.15207146]
[1609503096292,0.0006,29281.0,29280.0,2.95001239]
[1609503096912,0.0006,29281.0,29280.0,2.05001239]
[1609503098213,0.0006,29281.0,29280.0,4.45001239]
[1609503098710,0.0006,29281.0,29280.0,2.05001239]
[1609503099317,0.0006,29281.0,29280.0,2.90001239]
[1609503099513,0.0006,29281.0,29280.0,2.05001239]
[1609503100212,0.0006,29281.0,29280.0,2.85001239]
[1609503101112,0.0006,29281.0,29280.0,3.90001239]
[1609503101514,0.0006,29281.0,29280.0,2.85001239]
[1609503101915,0.0006,29281.0,29280.0,2.05001239]
[1609503104845,0.0006,29281.0,29280.0,2.05069545]
[1609503105245,0.0006,29281.0,29280.0,2.95069545]
[1609503107413,0.42999629,29281.0,29280.0,2.95069545]
[1609503108015,0.42999629,29281.0,29280.0,3.27728495]
[1609503108616,0.42999629,29281.0,29280.0,2.37728495]
[1609503110014,0.42999629,29281.0,29280.0,3.67728495]
[1609503111221,0.42999629,29281.0,29280.0,3.80187938]
[1609503112116,0.42999629,29281.0,29280.0,2.50187938]
[1609503113017,0.42999629,29281.0,29280.0,3.55187938]
[1609503115237,0.42999629,29281.0,29280.0,2.50187938]
[1609503115443,0.42999629,29281.0,29280.0,2.37728495]
[1609503117944,0.42999629,29281.0,29280.0,2.47974361]
[1609503118341,0.42999629,29281.0,29280.0,1.81974361]
[1609503120165,0.42999629,29281.0,29280.0,1.71728495]
[1609503121057,0.42999629,29281.0,29280.0,2.86728495]
[1609503121264,0.42999629,29281.0,29280.0,1.84179251]
[1609503122355,0.42999629,29281.0,29280.0,1.71728495]
[1609503123862,0.42999629,29281.0,29280.0,2.36728495]
[1609503124561,0.42999629,29281.0,29280.0,1.84178179]
[1609503126670,0.42999629,29281.0,29280.0,1.61728495]
[1609503126899,1.38193747,29281.0,29280.0,1.61728495]
[1609503127097,1.83696747,29281.0,29280.0,1.335173]
[1609503127299,2.03696747,29281.0,29280.0,1.21069545]
[1609503127694,1.83696747,29281.0,29280.0,1.21069545]
[1609503127996,2.03696747,29281.0,29280.0,1.21069545]
[1609503129801,2.13696747,29281.0,29280.0,1.21069545]
[1609503130001,2.33696747,29281.0,29280.0,1.00690795]
[1609503130205,2.52043559,29281.0,29280.0,0.00690795]
[1609503130697,2.88534859,29281.0,29280.0,0.00690795]
[1609503130904,6.18534859,29281.0,29280.0,0.00068306]
[1609503131194,3.63534859,29281.0,29280.0,0.00068306]
[1609503131499,2.32043559,29281.0,29280.0,0.00068306]
[1609503131805,2.12043559,29281.0,29280.0,0.00068306]
[1609503132299,2.48696747,29281.0,29280.0,0.00068306]
[1609503132823,2.28696747,29281.0,29280.0,0.00068306]
[1609503133021,2.48696747,29281.0,29280.0,0.00068306]
[1609503133222,2.08696747,29281.0,29280.0,0.00068306]
[1609503133426,2.28696747,29281.0,29280.0,0.00068306]
[1609503133630,2.24327259,29281.0,29280.0,0.00068306]
[1609503133825,2.04327259,29281.0,29280.0,0.00068306]
[1609503134930,2.00980447,29281.0,29280.0,0.00068306]
[1609503135928,1.90980447,29281.0,29280.0,0.00068306]
[1609503137285,2.14327259,29281.0,29280.0,0.00068306]
[1609503137481,1.90980447,29281.0,29280.0,0.00068306]
[1609503137686,1.70366447,29281.0,29280.0,0.10068306]
[1609503137879,0.75172329,29281.0,29280.0,0.10068306]
[1609503138086,1.55366447,29281.0,29280.0,0.10068306]
[1609503138493,0.60172329,29281.0,29280.0,0.10068306]
[1609503138799,0.39672329,29281.0,29280.0,1.55068306]
[1609503138987,0.39672329,29281.0,29280.0,0.10068306]
[1609503141387,0.39672329,29281.0,29280.0,1.10068306]
[1609503143619,0.39672329,29281.0,29280.0,1.92584058]
[1609503143831,0.39672329,29281.0,29280.0,1.73068306]
[1609503144220,0.39672329,29281.0,29280.0,1.84584058]
[1609503144515,0.39672329,29281.0,29280.0,1.55068306]
[1609503147843,1.34866447,29281.0,29280.0,1.00068306]
[1609503148151,1.64866447,29281.0,29280.0,1.00068306]
[1609503148753,1.64866447,29281.0,29280.0,0.00068306]
[1609503148754,1.84866447,29281.0,29280.0,0.00068306]
[1609503149348,2.21357747,29281.0,29280.0,0.00068306]
[1609503149543,2.14857747,29281.0,29280.0,0.00068306]
[1609503149848,2.34857747,29281.0,29280.0,0.00068306]
[1609503150443,2.38204559,29281.0,29280.0,0.00068306]
[1609503150645,2.34857747,29281.0,29280.0,0.00068306]
[1609503150844,2.14857747,29281.0,29280.0,0.10286508]
[1609503151049,2.34857747,29281.0,29280.0,0.10286508]
[1609503151242,2.34857747,29281.0,29280.0,0.00068306]
[1609503151444,2.14857747,29281.0,29280.0,0.00068306]
[1609503151922,1.78366447,29281.0,29280.0,0.00068306]
[1609503154142,2.14857747,29281.0,29280.0,0.00068306]
[1609503155043,1.78366447,29281.0,29280.0,0.00068306]
[1609503156049,2.14857747,29281.0,29280.0,0.00068306]
[1609503156250,2.34857747,29281.0,29280.0,0.00068306]
[1609503156648,1.78366447,29281.0,29280.0,0.00068306]
[1609503156851,1.98366447,29281.0,29280.0,0.00068306]
[1609503157069,1.78366447,29281.0,29280.0,0.00068306]
[1609503157272,2.14857747,29281.0,29280.0,0.00068306]
[1609503157473,1.78366447,29281.0,29280.0,0.00068306]
[1609503158274,1.68366447,29281.0,29280.0,0.00068306]
[1609503158671,1.68366447,29281.0,29280.0,0.00691035]
[1609503159876,0.73172329,29281.0,29280.0,0.10691035]
[1609503160075,0.59672329,29281.0,29280.0,0.10691035]
[1609503160376,1.54866447,29281.0,29280.0,0.00691035]
[1609503160975,0.59672329,29281.0,29280.0,0.00691035]
[1609503161175,0.59672329,29281.0,29280.0,0.10691035]
[1609503161973,1.54866447,29281.0,29280.0,0.10691035]
[1609503162178,1.54866447,29281.0,29280.0,0.00691035]
[1609503163487,0.59672329,29281.0,29280.0,0.00691035]
[1609503164492,0.59672329,29281.0,29280.0,0.10691035]
[1609503164697,0.59672329,29281.0,29280.0,1.35206787]
[1609503165001,0.59672329,29281.0,29280.0,1.75773434]
[1609503165194,0.39672329,29281.0,29280.0,1.75773434]
[1609503165592,0.39672329,29281.0,29280.0,3.40773434]
[1609503165796,0.39672329,29281.0,29280.0,3.40705128]
[1609503166498,0.3960406,29281.0,29280.0,2.15705128]
[1609503167008,0.3960406,29281.0,29280.0,3.66835128]
[1609503167405,0.3960406,29281.0,29280.0,4.21835128]
[1609503167606,0.3960406,29281.0,29280.0,4.63835128]
[1609503168306,0.3960406,29281.0,29280.0,3.18835128]
[1609503169206,0.3960406,29281.0,29280.0,2.99319376]
[1609503169410,0.3960406,29281.0,29280.0,3.18835128]
[1609503169609,0.3960406,29281.0,29280.0,2.57319376]
[1609503170609,0.3960406,29281.0,29280.0,2.76835128]
[1609503174229,0.3910406,29281.0,29280.0,2.76835128]
[1609503177036,0.3910406,29281.0,29280.0,2.47319376]
[1609503177234,0.3910406,29281.0,29280.0,2.76835128]
[1609503177436,0.3910406,29281.0,29280.0,3.11819376]
[1609503178633,0.3910406,29281.0,29280.0,3.31335128]
[1609503178833,0.3910406,29281.0,29280.0,3.01819376]
[1609503179041,0.3910406,29281.0,29280.0,3.31335128]
[1609503179649,0.3910406,29281.0,29280.0,3.11819376]
[1609503179847,0.3910406,29281.0,29280.0,3.31335128]
[1609503180752,0.3910406,29281.0,29280.0,3.11819376]
[1609503180953,0.3910406,29281.0,29280.0,3.31335128]
[1609503187056,0.3910406,29281.0,29280.0,3.11819376]
[1609503187554,0.3910406,29281.0,29280.0,3.31335128]
[1609503190560,0.3910406,29281.0,29280.0,3.39631261]
[1609503190959,0.3910406,29281.0,29280.0,3.20115509]
[1609503191256,0.3910406,29281.0,29280.0,3.39631261]
[1609503193081,0.3910406,29281.0,29280.0,3.31335128]
[1609503193681,0.3910406,29281.0,29280.0,3.11819376]
[1609503193980,0.3910406,29281.0,29280.0,3.60313914]
[1609503194380,0.3910406,29281.0,29280.0,3.70540914]
[1609503195979,0.3910406,29281.0,29280.0,3.60313914]
[1609503196384,0.3910406,29281.0,29280.0,3.74041914]
[1609503197044,0.3910406,29281.0,29280.0,3.79304772]
[1609503197251,0.3910406,29281.0,29280.0,3.91757325]
[1609503197851,0.3910406,29281.0,29280.0,3.79304772]
[1609503198045,0.3910406,29281.0,29280.0,5.29304772]
[1609503198549,0.3910406,29281.0,29280.0,3.79304772]
[1609503200546,0.3910406,29281.0,29280.0,3.91749986]
[1609503200747,0.3910406,29281.0,29280.0,3.79304772]